lending/lending_fUSD_20240603
["ID","MTS","AMOUNT","RATE_DAILY","PERIOD"]
[328433976,1717383081877,-2343.51,0.00032054,4]
[328433977,1717383081887,-500.0,0.00032054,4]
[328433978,1717383081896,-1874.55,0.00032054,4]
[328433979,1717383081906,-500.0,0.00032054,4]
[328433980,1717383081916,-1355.02,0.00032054,4]
[328433981,1717383081926,-500.0,0.00032054,4]
[328433982,1717383081935,-500.0,0.00032054,4]
[328433983,1717383081944,-500.0,0.00032054,4]
[328433984,1717383081953,-500.0,0.00032054,4]
[328433985,1717383081963,-838.43,0.00032054,4]
[328433986,1717383081972,-500.0,0.00032054,4]
[328433987,1717383081981,-1859.23,0.00032054,4]
[328433988,1717383081990,-500.0,0.00032054,4]
[328433989,1717383081999,-500.0,0.00032054,4]
[328433990,1717383082009,-500.0,0.00032054,4]
[328433991,1717383082018,-500.0,0.00032054,4]
[328433992,1717383082027,-968.14,0.00032054,4]
[328433993,1717383082036,-1216.93,0.00032054,4]
[328433994,1717383082045,-500.0,0.00032054,4]
[328433995,1717383082054,-732.47,0.00032054,4]
[328433996,1717383082063,-875.3,0.00032054,4]
[328433997,1717383082072,-814.06,0.00032054,4]
[328433998,1717383082081,-500.0,0.00032054,4]
[328433999,1717383082090,-500.0,0.00032054,4]
[328434000,1717383082099,-500.0,0.00032054,4]
[328434001,1717383082108,-591.35,0.00032054,4]
[328434002,1717383082117,-500.0,0.00032054,4]
[328434003,1717383082127,-500.0,0.00032054,4]
[328434004,1717383082136,-3062.26,0.00032054,4]
[328434005,1717383082145,-500.0,0.00032054,4]
[328434006,1717383082154,-695.63,0.00032054,4]
[328434007,1717383082164,-2412.97,0.00032054,4]
[328434008,1717383082173,-3534.67,0.00032054,4]
[328434009,1717383082182,-2480.71,0.00032054,4]
[328434010,1717383082191,-336.54309675,0.00032054,4]
[328434011,1717383082201,-800.8,0.00032054,4]
[328434012,1717383082210,-9189.46,0.00032054,4]
[328434013,1717383082219,-2150.22,0.00032054,4]
[328434014,1717383082228,-764.01,0.00032054,4]
[328434015,1717383082237,-500.0,0.00032054,4]
[328434016,1717383082246,-1982.04,0.00032054,4]
[328434017,1717383082255,-4186.6,0.00032054,4]
[328434018,1717383082264,-7160.23,0.00032054,4]
[328434019,1717383082273,-1583.32,0.00032054,4]
[328434020,1717383082282,-3511.0,0.00032054,4]
[328434021,1717383082291,-573.3,0.00032054,4]
[328434022,1717383082300,-600.53301036,0.00032054,4]
[328434023,1717383082309,-1963.1,0.00032054,4]
[328434024,1717383082318,-500.0,0.00032054,4]
[328434025,1717383082327,-500.0,0.00032054,4]
[328434026,1717383082336,-656.97,0.00032054,4]
[328434027,1717383082346,-500.0,0.00032054,4]
[328434028,1717383082355,-527.74,0.00032054,4]
[328434029,1717383082364,-500.0,0.00032054,4]
[328434030,1717383082372,-622.95,0.00032054,4]
[328434031,1717383082384,-500.0,0.00032054,4]
[328434032,1717383082394,-500.0,0.00032054,4]
[328434033,1717383082403,-500.0,0.00032054,4]
[328434034,1717383082412,-2897.65,0.00032054,4]
[328434035,1717383082423,-1723.41,0.00032054,4]
[328434036,1717383082432,-1703.68,0.00032054,4]
[328434037,1717383082441,-621.17510311,0.00032054,4]
[328434038,1717383082450,-1487.14,0.00032054,4]
[328434039,1717383082463,-500.0,0.00032054,4]
[328434040,1717383082480,-286.94046683,0.00032054,4]
[328434041,1717383082497,-500.0,0.00032054,4]
[328434042,1717383082511,-1930.1,0.00032054,4]
[328434043,1717383082528,-500.0,0.00032054,4]
[328434044,1717383082544,-1201.29,0.00032054,4]
[328434045,1717383082562,-1608.51,0.00032054,4]
[328434046,1717383082579,-2217.54,0.00032054,4]
[328434047,1717383082595,-500.0,0.00032054,4]
[328434048,1717383082610,-500.0,0.00032054,4]
[328434049,1717383082625,-13207.0,0.00032054,4]
[328434050,1717383082637,-500.0,0.00032054,4]
[328434051,1717383082653,-500.0,0.00032054,4]
[328434052,1717383082688,-546.85,0.00032054,4]
[328434053,1717383082708,-500.0,0.00032054,4]
[328434054,1717383082730,-1279.96,0.00032054,4]
[328434055,1717383082745,-4969.37,0.00032054,4]
[328434056,1717383082757,-2760.93,0.00032054,4]
[328434057,1717383082775,-1423.72,0.00032054,4]
[328434058,1717383082791,-1024.88,0.00032054,4]
[328434059,1717383082805,-1072.92,0.00032054,4]
[328434060,1717383082822,-2917.33,0.00032054,4]
[328434061,1717383082835,-500.0,0.00032054,4]
[328434062,1717383082848,-679.51,0.00032054,4]
[328434063,1717383082864,-2436.39,0.00032054,4]
[328434064,1717383082885,-500.0,0.00032054,4]
[328434065,1717383082902,-500.0,0.00032054,4]
[328434066,1717383082918,-1201.12,0.00032054,4]
[328434067,1717383082933,-2922.52,0.00032054,4]
[328434068,1717383082948,-1894.74,0.00032054,4]
[328434069,1717383082964,-4358.46,0.00032054,4]
[328434070,1717383082978,-500.0,0.00032054,4]
[328434071,1717383082992,-2223.58,0.00032054,4]
[328434072,1717383083006,-500.0,0.00032054,4]
[328434073,1717383083020,-988.38,0.00032054,4]
[328434074,1717383083034,-407.2,0.00032054,4]
[328434075,1717383083048,-500.0,0.00032054,4]
[328434076,1717383083061,-1505.63,0.00032054,4]
[328434077,1717383083075,-500.0,0.00032054,4]
[328434078,1717383083089,-788.0,0.00032054,4]
[328434079,1717383083103,-543.37831107,0.00032054,4]
[328434080,1717383083116,-1511.7,0.00032054,4]
[328434081,1717383083130,-2240.68,0.00032054,4]
[328434082,1717383083143,-500.0,0.00032054,4]
[328434083,1717383083156,-9500.56,0.00032054,4]
[328434084,1717383083169,-948.87,0.00032054,4]
[328434085,1717383083181,-1823.94,0.00032054,4]
[328434086,1717383083194,-500.0,0.00032054,4]
[328434087,1717383083208,-500.0,0.00032054,4]
[328434088,1717383083229,-634.58,0.00032054,4]
[328434089,1717383083248,-2799.18,0.00032054,4]
[328434090,1717383083266,-1694.14,0.00032054,4]
[328434091,1717383083283,-500.0,0.00032054,4]
[328434092,1717383083298,-500.0,0.00032054,4]
[328434093,1717383083313,-2135.27,0.00032054,4]
[328434094,1717383083327,-3787.22,0.00032054,4]
[328434095,1717383083341,-1334.16,0.00032054,4]
[328434096,1717383083354,-500.0,0.00032054,4]
[328434097,1717383083369,-775.78,0.00032054,4]
[328434098,1717383083384,-1375.03,0.00032054,4]
[328434099,1717383083398,-1464.67,0.00032054,4]
[328434100,1717383083412,-500.0,0.00032054,4]
[328434101,1717383083422,-1131.19,0.00032054,4]
[328434102,1717383083431,-500.0,0.00032054,4]
[328434103,1717383083441,-839.92,0.00032054,4]
[328434104,1717383083451,-500.0,0.00032054,4]
[328434105,1717383083463,-713.57,0.00032054,4]
[328434106,1717383083473,-1716.06,0.00032054,4]
[328434107,1717383083482,-2373.26,0.00032054,4]
[328434108,1717383083491,-2354.41,0.00032054,4]
[328434109,1717383083501,-660.76,0.00032054,4]
[328434110,1717383083510,-3082.36,0.00032054,4]
[328434111,1717383083519,-500.0,0.00032054,4]
[328434112,1717383083528,-500.0,0.00032054,4]
[328434113,1717383083537,-527.38,0.00032054,4]
[328434114,1717383083547,-500.0,0.00032054,4]
[328434115,1717383083556,-500.0,0.00032054,4]
[328434116,1717383083565,-500.0,0.00032054,4]
[328434117,1717383083574,-1592.2,0.00032054,4]
[328434118,1717383083583,-3681.53,0.00032054,4]
[328434119,1717383083593,-3723.56,0.00032054,4]
[328434120,1717383083602,-1351.86,0.00032054,4]
[328434121,1717383083611,-1259.91,0.00032054,4]
[328434122,1717383083620,-500.0,0.00032054,4]
[328434123,1717383083630,-1013.01,0.00032054,4]
[328434124,1717383083639,-500.0,0.00032054,4]
[328434125,1717383083649,-5548.27,0.00032054,4]
[328434126,1717383083659,-361.26598313,0.00032054,4]
[328434127,1717383083668,-500.0,0.00032054,4]
[328434128,1717383083677,-10336.33,0.00032054,4]
[328434129,1717383083687,-1388.53,0.00032054,4]
[328434130,1717383083696,-500.0,0.00032054,4]
[328434131,1717383083706,-1836.73,0.00032054,4]
[328434132,1717383083717,-500.0,0.00032054,4]
[328434133,1717383083727,-587.161484,0.00032054,4]
[328434134,1717383083736,-575.3,0.00032054,4]
[328434135,1717383083746,-500.0,0.00032054,4]
[328434136,1717383083755,-3790.28,0.00032054,4]
[328434137,1717383083764,-625.21,0.00032054,4]
[328434138,1717383083773,-500.0,0.00032054,4]
[328434139,1717383083783,-1984.76,0.00032054,4]
[328434140,1717383083792,-433.904682,0.00032055,14]
[328434141,1717383083801,-157.46797257,0.00032055,30]
[328434142,1717383083811,-151.0,0.00032075,7]
[328434143,1717383083820,-152.48854641,0.00032079,7]
[328434144,1717383083831,-155.97703786,0.00032089,7]
[328434145,1717383083840,-5000.0,0.00032096,2]
[328434146,1717383083850,-191.02889,0.000321,7]
[328434147,1717383083859,-150.0,0.000321,7]
[328434148,1717383083869,-150.0,0.00032104,7]
[328434149,1717383083879,-157.14383776,0.00032116,7]
[328434150,1717383083889,-150.0,0.00032136,7]
[328434151,1717383083898,-3701.24,0.0003215,2]
[328434152,1717383083907,-170.4830861,0.00032165,7]
[328434153,1717383083916,-1663.73,0.00032169,2]
[328434154,1717383083926,-5000.0,0.00032177,2]
[328434155,1717383083935,-150.0,0.00032183,7]
[328434156,1717383083945,-150.0,0.00032192,2]
[328434157,1717383083954,-5000.0,0.00032204,2]
[328434158,1717383083964,-156.25433417,0.00032217,7]
[328434159,1717383083974,-1982.97740599,0.00032218,2]
[328434160,1717383083991,-410.37724548,0.00032218,2]
[328434161,1717383084002,-281.07575007,0.00032218,2]
[328434162,1717383084018,-2325.56959846,0.00032218,2]
[328434163,1717383084027,-156.63232352,0.00032221,7]
[328434164,1717383084036,-150.0,0.00032257,7]
[328434165,1717383084046,-150.0,0.00032265,7]
[328434166,1717383084055,-157.46797257,0.00032274,30]
[328434167,1717383084064,-1246.01,0.000323,2]
[328434168,1717383084074,-1510.0,0.000323,2]
[328434169,1717383084084,-156.63232352,0.00032305,7]
[328434170,1717383084573,-157.62194437,0.00032316,7]
[328434171,1717383084591,-500.0,0.00032328,4]
[328434173,1717383084607,-500.0,0.00032328,4]
[328434174,1717383084620,-316.95207852,0.00032328,4]
[328434175,1717383084629,-568.65559753,0.00032328,4]
[328434176,1717383084638,-500.0,0.00032328,4]
[328434177,1717383084647,-500.0,0.00032328,4]
[328434178,1717383084656,-500.0,0.00032328,4]
[328434179,1717383084665,-614.49,0.00032328,4]
[328434180,1717383084675,-525.24704576,0.00032328,4]
[328434181,1717383084684,-500.0,0.00032328,4]
[328434182,1717383084694,-500.0,0.00032328,4]
[328434183,1717383084703,-730.39,0.00032328,4]
[328434184,1717383084713,-596.12,0.00032328,4]
[328434185,1717383084723,-500.0,0.00032328,4]
[328434186,1717383084733,-500.0,0.00032328,4]
[328434187,1717383084742,-500.0,0.00032328,4]
[328434188,1717383084753,-500.0,0.00032328,4]
[328434189,1717383084762,-500.0,0.00032328,4]
[328434190,1717383084771,-161.63701451,0.00032328,4]
[328434191,1717383084782,-936.75,0.00032328,4]
[328434192,1717383084791,-1187.66,0.00032328,4]
[328434193,1717383084801,-500.0,0.00032328,4]
[328434194,1717383084810,-1818.86,0.00032328,4]
[328434195,1717383084820,-500.0,0.00032328,4]
[328434196,1717383084829,-500.0,0.00032328,4]
[328434197,1717383084839,-500.0,0.00032328,4]
[328434198,1717383084849,-500.0,0.00032328,4]
[328434199,1717383084858,-500.0,0.00032328,4]
[328434200,1717383084868,-500.0,0.00032328,4]
[328434201,1717383084877,-500.0,0.00032328,4]
[328434202,1717383084887,-500.0,0.00032328,4]
[328434203,1717383084896,-500.0,0.00032328,4]
[328434204,1717383084906,-500.0,0.00032328,4]
[328434205,1717383084915,-644.88,0.00032328,4]
[328434206,1717383084924,-631.89,0.00032328,4]
[328434207,1717383084934,-500.0,0.00032328,4]
[328434208,1717383084944,-427.07315286,0.00032328,4]
[328434209,1717383084953,-500.0,0.00032328,4]
[328434210,1717383084964,-500.0,0.00032328,4]
[328434211,1717383084974,-538.83,0.00032328,4]
[328434212,1717383084983,-500.0,0.00032328,4]
[328434213,1717383084996,-500.0,0.00032328,4]
[328434214,1717383085005,-500.0,0.00032328,4]
[328434215,1717383085014,-500.0,0.00032328,4]
[328434216,1717383085023,-1871.37,0.00032328,4]
[328434217,1717383085032,-500.0,0.00032328,4]
[328434218,1717383085042,-500.0,0.00032328,4]
[328434219,1717383085051,-712.74,0.00032328,4]
[328434220,1717383085060,-613.85,0.00032328,4]
[328434221,1717383085070,-705.41,0.00032328,4]
[328434222,1717383085079,-500.0,0.00032328,4]
[328434223,1717383085088,-500.0,0.00032328,4]
[328434224,1717383085097,-500.0,0.00032328,4]
[328434225,1717383085107,-972.45,0.00032328,4]
[328434226,1717383085117,-1291.57,0.00032328,4]
[328434227,1717383085126,-500.0,0.00032328,4]
[328434228,1717383085135,-500.0,0.00032328,4]
[328434229,1717383085145,-745.06,0.00032328,4]
[328434230,1717383085154,-514.76,0.00032328,4]
[328434231,1717383085163,-500.0,0.00032328,4]
[328434232,1717383085172,-500.0,0.00032328,4]
[328434233,1717383085181,-501.54,0.00032328,4]
[328434234,1717383085190,-500.0,0.00032328,4]
[328434235,1717383085200,-586.3,0.00032328,4]
[328434236,1717383085210,-500.0,0.00032328,4]
[328434237,1717383085220,-500.0,0.00032328,4]
[328434238,1717383085228,-500.0,0.00032328,4]
[328434239,1717383085238,-647.05,0.00032328,4]
[328434240,1717383085247,-705.88,0.00032328,4]
[328434241,1717383085257,-500.0,0.00032328,4]
[328434242,1717383085266,-500.0,0.00032328,4]
[328434243,1717383085276,-485.37060611,0.00032328,4]
[328434244,1717383085285,-503.06,0.00032328,4]
[328434245,1717383085294,-510.44,0.00032328,4]
[328434246,1717383085305,-500.0,0.00032328,4]
[328434247,1717383085313,-553.73,0.00032328,4]
[328434248,1717383085323,-825.33,0.00032328,4]
[328434249,1717383085333,-500.0,0.00032328,4]
[328434250,1717383085342,-633.07,0.00032328,4]
[328434251,1717383085352,-174.32099048,0.00032328,4]
[328434252,1717383085361,-500.0,0.00032328,4]
[328434253,1717383085370,-500.0,0.00032328,4]
[328434254,1717383085384,-623.31,0.00032328,4]
[328434255,1717383085393,-500.0,0.00032328,4]
[328434256,1717383085402,-500.0,0.00032328,4]
[328434257,1717383085413,-777.94,0.00032328,4]
[328434258,1717383085423,-500.0,0.00032328,4]
[328434259,1717383085432,-500.0,0.00032328,4]
[328434260,1717383085442,-500.0,0.00032328,4]
[328434261,1717383085450,-557.82,0.00032328,4]
[328434262,1717383085461,-653.45,0.00032328,4]
[328434263,1717383085471,-500.0,0.00032328,4]
[328434264,1717383085480,-500.0,0.00032328,4]
[328434265,1717383085489,-500.0,0.00032328,4]
[328434266,1717383085499,-500.0,0.00032328,4]
[328434267,1717383085508,-500.0,0.00032328,4]
[328434268,1717383085517,-500.0,0.00032328,4]
[328434269,1717383085527,-1208.65,0.00032328,4]
[328434270,1717383085536,-500.0,0.00032328,4]
[328434271,1717383085545,-500.0,0.00032328,4]
[328434272,1717383085554,-500.0,0.00032328,4]
[328434273,1717383085564,-612.73,0.00032328,4]
[328434274,1717383085573,-309.52462809,0.00032328,2]
[328434275,1717383085582,-500.0,0.00032328,4]
[328434276,1717383085591,-500.0,0.00032328,4]
[328434277,1717383085600,-500.0,0.00032328,4]
[328434278,1717383085609,-500.0,0.00032328,4]
[328434279,1717383085618,-500.0,0.00032328,4]
[328434280,1717383085627,-858.8,0.00032328,4]
[328434281,1717383085636,-529.77,0.00032328,4]
[328434282,1717383085646,-500.0,0.00032328,4]
[328434283,1717383085654,-1286.79,0.00032328,4]
[328434284,1717383085664,-932.87,0.00032328,4]
[328434285,1717383085674,-586.22,0.00032328,4]
[328434286,1717383085683,-500.0,0.00032328,4]
[328434287,1717383085693,-500.0,0.00032328,4]
[328434288,1717383085703,-509.18,0.00032328,4]
[328434289,1717383085713,-4478.3,0.00032328,4]
[328434290,1717383085722,-500.0,0.00032328,4]
[328434291,1717383085732,-500.0,0.00032328,4]
[328434292,1717383085741,-537.04253058,0.00032328,4]
[328434293,1717383085751,-1170.51,0.00032328,4]
[328434294,1717383085760,-1037.41,0.00032328,4]
[328434295,1717383085769,-1019.2,0.00032328,4]
[328434296,1717383085779,-34960.64,0.00032328,4]
[328434297,1717383085788,-726.35,0.00032328,4]
[328434298,1717383085798,-1375.28,0.00032328,4]
[328434299,1717383085807,-1209.41,0.00032328,4]
[328434300,1717383085817,-749.6,0.00032328,4]
[328434301,1717383085826,-14117.3,0.00032328,4]
[328434302,1717383085835,-500.0,0.00032328,4]
[328434303,1717383085844,-500.0,0.00032328,4]
[328434304,1717383085854,-500.0,0.00032328,4]
[328434305,1717383085863,-4225.42,0.00032328,4]
[328434306,1717383085873,-500.0,0.00032328,4]
[328434307,1717383085882,-500.0,0.00032328,4]
[328434308,1717383085892,-500.0,0.00032328,4]
[328434309,1717383085901,-2343.51,0.00032328,4]
[328434310,1717383085910,-500.0,0.00032328,4]
[328434311,1717383085920,-1874.55,0.00032328,4]
[328434312,1717383085930,-500.0,0.00032328,4]
[328434313,1717383085939,-1355.02,0.00032328,4]
[328434314,1717383085948,-500.0,0.00032328,4]
[328434315,1717383085957,-500.0,0.00032328,4]
[328434316,1717383085967,-500.0,0.00032328,4]
[328434317,1717383085977,-231.94575509,0.00032328,4]
[328434318,1717383085989,-500.0,0.00032328,4]
[328434319,1717383085998,-838.43,0.00032328,4]
[328434320,1717383086008,-1859.23,0.00032328,4]
[328434321,1717383086018,-500.0,0.00032328,4]
[328434322,1717383086027,-500.0,0.00032328,4]
[328434323,1717383086037,-500.0,0.00032328,4]
[328434324,1717383086046,-500.0,0.00032328,4]
[328434325,1717383086056,-1216.93,0.00032328,4]
[328434326,1717383086066,-968.14,0.00032328,4]
[328434327,1717383086075,-500.0,0.00032328,4]
[328434328,1717383086085,-732.47,0.00032328,4]
[328434329,1717383086094,-875.3,0.00032328,4]
[328434330,1717383086103,-814.06,0.00032328,4]
[328434331,1717383086111,-500.0,0.00032328,4]
[328434332,1717383086120,-500.0,0.00032328,4]
[328434333,1717383086130,-500.0,0.00032328,4]
[328434334,1717383086139,-591.35,0.00032328,4]
[328434335,1717383086148,-500.0,0.00032328,4]
[328434336,1717383086157,-500.0,0.00032328,4]
[328434337,1717383086166,-3062.26,0.00032328,4]
[328434338,1717383086175,-500.0,0.00032328,4]
[328434339,1717383086185,-695.63,0.00032328,4]
[328434340,1717383086194,-2412.97,0.00032328,4]
[328434341,1717383086204,-3534.67,0.00032328,4]
[328434342,1717383086213,-2480.71,0.00032328,4]
[328434343,1717383086222,-800.8,0.00032328,4]
[328434344,1717383086231,-2150.22,0.00032328,4]
[328434345,1717383086240,-9189.46,0.00032328,4]
[328434346,1717383086249,-764.01,0.00032328,4]
[328434347,1717383086259,-500.0,0.00032328,4]
[328434348,1717383086267,-1982.04,0.00032328,4]
[328434349,1717383086276,-4186.6,0.00032328,4]
[328434350,1717383086285,-7160.23,0.00032328,4]
[328434351,1717383086294,-1583.32,0.00032328,4]
[328434352,1717383086303,-3511.0,0.00032328,4]
[328434353,1717383086312,-573.3,0.00032328,4]
[328434354,1717383086321,-1963.1,0.00032328,4]
[328434355,1717383086330,-500.0,0.00032328,4]
[328434356,1717383086339,-500.0,0.00032328,4]
[328434357,1717383086348,-656.97,0.00032328,4]
[328434358,1717383086357,-527.74,0.00032328,4]
[328434359,1717383086366,-500.0,0.00032328,4]
[328434360,1717383086375,-297.76160559,0.00032328,4]
[328434361,1717383086390,-622.95,0.00032328,4]
[328434362,1717383086399,-500.0,0.00032328,4]
[328434363,1717383086408,-588.82035113,0.00032328,4]
[328434364,1717383086417,-500.0,0.00032328,4]
[328434365,1717383086427,-2897.65,0.00032328,4]
[328434366,1717383086436,-1723.41,0.00032328,4]
[328434367,1717383086445,-1703.68,0.00032328,4]
[328434368,1717383086454,-1487.14,0.00032328,4]
[328434369,1717383086466,-500.0,0.00032328,4]
[328434370,1717383086475,-500.0,0.00032328,4]
[328434371,1717383086485,-1930.1,0.00032328,4]
[328434372,1717383086495,-500.0,0.00032328,4]
[328434373,1717383086504,-1201.29,0.00032328,4]
[328434374,1717383086513,-1608.51,0.00032328,4]
[328434375,1717383086522,-2217.54,0.00032328,4]
[328434376,1717383086534,-606.80888354,0.00032328,4]
[328434377,1717383086542,-500.0,0.00032328,4]
[328434378,1717383086554,-13207.0,0.00032328,4]
[328434379,1717383086563,-500.0,0.00032328,4]
[328434380,1717383086574,-500.0,0.00032328,4]
[328434381,1717383086582,-546.85,0.00032328,4]
[328434382,1717383086592,-500.0,0.00032328,4]
[328434383,1717383086603,-1279.96,0.00032328,4]
[328434384,1717383086613,-4969.37,0.00032328,4]
[328434385,1717383086622,-1423.72,0.00032328,4]
[328434386,1717383086634,-2760.93,0.00032328,4]
[328434387,1717383086643,-1024.88,0.00032328,4]
[328434388,1717383086653,-2917.33,0.00032328,4]
[328434389,1717383086663,-1072.92,0.00032328,4]
[328434390,1717383086674,-500.0,0.00032328,4]
[328434391,1717383086684,-679.51,0.00032328,4]
[328434392,1717383086694,-2436.39,0.00032328,4]
[328434393,1717383086704,-500.0,0.00032328,4]
[328434394,1717383086714,-500.0,0.00032328,4]
[328434395,1717383086723,-1201.12,0.00032328,4]
[328434396,1717383086733,-2922.52,0.00032328,4]
[328434397,1717383086742,-1894.74,0.00032328,4]
[328434398,1717383086751,-4358.46,0.00032328,4]
[328434399,1717383086760,-500.0,0.00032328,4]
[328434400,1717383086770,-2223.58,0.00032328,4]
[328434401,1717383086779,-500.0,0.00032328,4]
[328434402,1717383086788,-988.38,0.00032328,4]
[328434403,1717383086797,-500.0,0.00032328,4]
[328434404,1717383086807,-1505.63,0.00032328,4]
[328434405,1717383086816,-500.0,0.00032328,4]
[328434406,1717383086825,-788.0,0.00032328,4]
[328434407,1717383086835,-1511.7,0.00032328,4]
[328434408,1717383086844,-2240.68,0.00032328,4]
[328434409,1717383086853,-500.0,0.00032328,4]
[328434410,1717383086863,-9500.56,0.00032328,4]
[328434411,1717383086872,-948.87,0.00032328,4]
[328434412,1717383086881,-1823.94,0.00032328,4]
[328434413,1717383086891,-500.0,0.00032328,4]
[328434414,1717383086900,-500.0,0.00032328,4]
[328434415,1717383086910,-634.58,0.00032328,4]
[328434416,1717383086919,-2799.18,0.00032328,4]
[328434417,1717383086929,-1694.14,0.00032328,4]
[328434418,1717383086938,-500.0,0.00032328,4]
[328434419,1717383086947,-500.0,0.00032328,4]
[328434420,1717383086956,-2135.27,0.00032328,4]
[328434421,1717383086967,-3787.22,0.00032328,4]
[328434422,1717383086976,-1334.16,0.00032328,4]
[328434423,1717383086987,-500.0,0.00032328,4]
[328434424,1717383086996,-775.78,0.00032328,4]
[328434425,1717383087007,-1375.03,0.00032328,4]
[328434426,1717383087017,-1464.67,0.00032328,4]
[328434427,1717383087026,-500.0,0.00032328,4]
[328434428,1717383087035,-1131.19,0.00032328,4]
[328434429,1717383087045,-500.0,0.00032328,4]
[328434430,1717383087054,-839.92,0.00032328,4]
[328434431,1717383087063,-500.0,0.00032328,4]
[328434432,1717383087072,-713.57,0.00032328,4]
[328434433,1717383087081,-1716.06,0.00032328,4]
[328434434,1717383087090,-2373.26,0.00032328,4]
[328434435,1717383087100,-2354.41,0.00032328,4]
[328434436,1717383087110,-660.76,0.00032328,4]
[328434437,1717383087122,-3082.36,0.00032328,4]
[328434438,1717383087131,-500.0,0.00032328,4]
[328434439,1717383087141,-500.0,0.00032328,4]
[328434440,1717383087153,-500.0,0.00032328,4]
[328434441,1717383087162,-527.38,0.00032328,4]
[328434442,1717383087171,-500.0,0.00032328,4]
[328434443,1717383087183,-500.0,0.00032328,4]
[328434444,1717383087194,-1592.2,0.00032328,4]
[328434445,1717383087204,-3681.53,0.00032328,4]
[328434446,1717383087216,-3723.56,0.00032328,4]
[328434447,1717383087225,-1351.86,0.00032328,4]
[328434448,1717383087234,-1259.91,0.00032328,4]
[328434449,1717383087245,-500.0,0.00032328,4]
[328434450,1717383087255,-1013.01,0.00032328,4]
[328434451,1717383087264,-500.0,0.00032328,4]
[328434452,1717383087274,-5548.27,0.00032328,4]
[328434453,1717383087283,-547.08175969,0.00032328,4]
[328434454,1717383087292,-10336.33,0.00032328,4]
[328434455,1717383087301,-1388.53,0.00032328,4]
[328434456,1717383087310,-500.0,0.00032328,4]
[328434457,1717383087320,-1836.73,0.00032328,4]
[328434458,1717383087329,-500.0,0.00032328,4]
[328434459,1717383087339,-575.3,0.00032328,4]
[328434460,1717383087349,-500.0,0.00032328,4]
[328434461,1717383087358,-3790.28,0.00032328,4]
[328434462,1717383087368,-625.21,0.00032328,4]
[328434463,1717383087378,-500.0,0.00032328,4]
[328434464,1717383087394,-150.0,0.00032341,7]
[328434465,1717383087404,-2503.41,0.0003236,2]
[328434466,1717383087413,-3160.49,0.00032368,2]
[328434467,1717383087423,-156.25433417,0.00032382,7]
[328434468,1717383087433,-150.0,0.00032393,7]
[328434469,1717383087443,-150.0,0.00032393,7]
[328434470,1717383087454,-150.0,0.00032393,7]
[328434471,1717383087467,-150.0,0.00032393,7]
[328434472,1717383087477,-604.0,0.00032396,7]
[328434473,1717383087486,-5000.0,0.000324,2]
[328434474,1717383087495,-156.63232352,0.00032402,7]
[328434475,1717383087504,-5000.0,0.00032417,2]
[328434476,1717383087513,-156.25433417,0.0003244,7]